bitfinex/quotes_ETHUSD_20220212
["timestamp","ask_amount","ask_price","bid_price","bid_amount"]
[1644637327150,0.0082403,2942.6,2942.5,3.61912577]
[1644637327353,0.0082403,2942.6,2942.5,4.61912577]
[1644637327554,0.00365199,2942.8,2942.5,4.29405216]
[1644637327754,0.1698,2943.0,2942.5,1.0]
[1644637327953,0.00824026,2942.7,2942.5,1.0]
[1644637328154,0.00824026,2942.7,2942.4,2.11852954]
[1644637328404,0.00824026,2942.7,2942.4,0.51852954]
[1644637328598,0.00824026,2942.7,2942.4,0.02752954]
[1644637328798,0.00365199,2942.9,2942.4,0.02752954]
[1644637329004,0.00465199,2942.9,2942.4,0.02752954]
[1644637329199,0.00824026,2942.7,2942.4,0.02752954]
[1644637329999,0.00465199,2942.9,2942.4,0.02752954]
[1644637330400,0.00824026,2942.7,2942.4,0.02752954]
[1644637331203,0.00465199,2942.9,2942.4,0.02752954]
[1644637331605,0.00824026,2942.7,2942.4,0.02752954]
[1644637332006,1.10654261,2942.5,2942.4,0.02752954]
[1644637332255,1.27734261,2942.5,2942.4,0.02752954]
[1644637332453,1.27734261,2942.5,2942.4,0.02621826]
[1644637332654,1.10754261,2942.5,2942.4,0.02621826]
[1644637334556,1.10754261,2942.5,2942.4,1.826e-05]
[1644637334757,5.37489304,2942.5,2942.4,1.826e-05]
[1644637334956,0.4708,2942.5,2942.4,1.826e-05]
[1644637335155,0.4698,2942.5,2942.4,1.826e-05]
[1644637335355,0.4698,2942.5,2942.4,0.02814078]
[1644637335356,0.1698,2942.5,2942.4,0.02814078]
[1644637335556,0.1708,2942.5,2942.4,0.02814078]
[1644637338201,0.1208,2942.5,2942.4,0.02814078]
[1644637340047,0.14824828,2942.5,2942.3,0.00723056]
[1644637340449,0.99840088,2942.5,2942.3,0.00723056]
[1644637340847,0.99840088,2942.5,2941.7,0.25]
[1644637341049,1.15484506,2942.1,2941.5,0.0162234]
[1644637341247,0.001,2942.0,2941.5,0.0162234]
[1644637342353,0.001,2942.0,2941.6,0.00722211]
[1644637343405,1.10584506,2942.1,2941.5,0.0162234]
[1644637343597,0.15524347,2942.5,2941.7,0.00722199]
[1644637344498,0.14724828,2942.5,2941.5,0.8662634]
[1644637344702,0.938559,2942.0,2941.5,0.0162234]
[1644637345399,0.96583608,2942.0,2941.5,0.0162234]
[1644637345799,0.96583608,2942.0,2941.6,1.44642139]
[1644637346003,0.96583608,2942.0,2941.6,0.00641739]
[1644637346004,0.91583608,2942.0,2941.6,0.00641739]
[1644637346801,0.91583608,2942.0,2941.5,0.0162234]
[1644637347003,0.91583608,2942.0,2941.6,1.44640098]
[1644637347252,0.91583608,2942.0,2941.7,0.00641728]
[1644637347850,1.03370836,2942.5,2941.7,0.00641728]
[1644637348050,1.03370836,2942.5,2941.5,0.0162234]
[1644637348051,1.02595451,2942.5,2941.5,0.0162234]
[1644637348251,0.4698,2942.5,2941.6,1.44638475]
[1644637348451,0.47860626,2942.5,2941.7,0.00659159]
[1644637348653,0.17860626,2942.5,2941.7,0.00659159]
[1644637349252,0.1708,2942.5,2941.5,0.0162234]
[1644637349453,1.07315774,2942.5,2941.6,1.44637411]
[1644637349653,0.001,2942.4,2942.0,0.00659103]
[1644637349855,0.1698,2942.3,2942.0,0.00659103]
[1644637350054,0.1708,2942.4,2942.0,0.00659103]
[1644637350453,0.1708,2942.4,2941.7,0.02751601]
[1644637350653,0.1708,2942.4,2942.1,0.00659081]
[1644637351698,0.1708,2942.4,2941.7,0.02751601]
[1644637351998,0.1708,2942.4,2942.1,0.00655146]
[1644637352802,0.1708,2942.4,2941.7,0.02751601]
[1644637353003,0.001,2942.4,2941.7,0.02751601]
[1644637353202,0.001,2942.4,2942.1,0.00655146]
[1644637354203,0.001,2942.4,2941.7,0.02751601]
[1644637354404,0.001,2942.4,2942.1,0.00655146]
[1644637355247,0.001,2942.4,2941.7,0.02751601]
[1644637355446,0.001,2942.4,2941.5,0.0162234]
[1644637355447,0.001,2942.4,2942.2,0.02751178]
[1644637356650,0.001,2942.4,2942.2,0.03407196]
[1644637357659,0.001,2942.4,2942.2,0.02751178]
[1644637358057,0.85715451,2942.4,2942.2,0.03407196]
[1644637358499,1.70731101,2942.4,2942.2,0.03407196]
[1644637358799,0.001,2942.3,2942.2,0.03407196]
[1644637358997,0.001,2942.3,2942.2,0.02751178]
[1644637359199,0.001,2942.3,2942.2,0.03406997]
[1644637360003,0.001,2942.3,2942.2,0.04499297]
[1644637360204,0.001,2942.3,2942.2,0.03843478]
[1644637363550,0.8501565,2942.4,2942.2,0.03843478]
[1644637363551,1.70731101,2942.4,2942.2,0.03843478]
[1644637363752,0.001,2942.3,2942.2,0.03843478]
[1644637364154,1.70731101,2942.4,2942.2,0.03843478]
[1644637364353,0.001,2942.3,2942.2,0.03843478]
[1644637367000,0.8511565,2942.4,2942.2,0.03843478]
[1644637368205,0.85615451,2942.3,2942.2,0.03843478]
[1644637368406,0.85715451,2942.3,2942.2,0.03843478]
[1644637369006,0.001,2942.3,2942.2,0.03843478]
[1644637369205,0.85715451,2942.3,2942.2,0.03843478]
[1644637369848,1.15715451,2942.3,2942.2,0.03843478]
[1644637370047,0.85715451,2942.3,2942.2,0.03843478]
[1644637372456,1.07215774,2942.5,2942.2,0.03843478]
[1644637372457,0.85715451,2942.4,2942.2,0.03843478]
[1644637372858,0.001,2942.4,2942.2,0.03843478]
[1644637373501,0.001,2942.4,2942.2,0.04499333]
[1644637374504,0.85715451,2942.4,2942.2,0.03843478]
[1644637374701,0.85715451,2942.4,2942.2,0.04499333]
[1644637375703,0.85715451,2942.4,2942.2,0.03843478]
[1644637375905,0.85715451,2942.4,2942.2,0.04499333]
[1644637376105,0.001,2942.4,2942.2,0.04499333]
[1644637376305,0.001,2942.4,2942.3,1.44618271]
[1644637376604,0.00779754,2942.5,2942.3,1.44618271]
[1644637376803,0.00779754,2942.5,2942.3,1.61598271]
[1644637377005,0.8598065,2942.9,2942.3,1.61598271]
[1644637377252,0.8598065,2942.9,2942.4,1.44618271]
[1644637377253,0.00779774,2942.5,2942.4,1.44618271]
[1644637378151,0.00365199,2942.7,2942.4,1.44618271]
[1644637378352,0.00779771,2942.6,2942.4,1.44618271]
[1644637378656,0.00779771,2942.6,2942.3,0.00655833]
[1644637379051,0.00779771,2942.6,2942.4,1.44617373]
[1644637379253,0.00365199,2942.7,2942.2,3.31823689]
[1644637379453,0.85615451,2942.9,2942.3,1.44615002]
[1644637379652,0.00779767,2942.6,2942.3,1.45270835]
[1644637379853,0.00779767,2942.6,2942.4,1.44615002]
[1644637380054,0.00779767,2942.6,2942.4,1.47395626]
[1644637380254,0.00779767,2942.6,2942.4,0.02780624]
[1644637380654,0.85615451,2942.9,2942.4,0.02780624]
[1644637380902,0.00779767,2942.6,2942.4,0.02780624]
[1644637381796,0.00365199,2942.7,2942.4,0.02780624]
[1644637382095,0.00779767,2942.6,2942.4,0.02780624]
[1644637382900,0.00365199,2942.7,2942.4,0.02780624]
[1644637383200,0.00779767,2942.6,2942.4,0.02780624]
[1644637384201,0.00365199,2942.8,2942.4,0.02780624]
[1644637384399,0.85615451,2942.9,2942.4,0.02780624]
[1644637384400,0.00779767,2942.6,2942.4,0.02780624]
[1644637385251,0.00365199,2942.8,2942.4,0.02780624]
[1644637385452,0.85615451,2942.9,2942.4,0.02780624]
[1644637385651,0.00779767,2942.6,2942.4,0.02780624]
[1644637385852,0.00779767,2942.6,2942.5,1.44604877]
[1644637386456,0.88733846,2943.3,2942.5,1.44604877]
[1644637386457,0.00365199,2943.2,2942.5,1.44604877]
[1644637386654,0.85615451,2943.1,2942.4,0.02780624]
[1644637386856,0.1698,2943.3,2942.5,1.4460039]
[1644637386857,0.00779764,2942.7,2942.5,1.4460039]
[1644637387460,0.00779764,2942.7,2942.6,3.2318376]
[1644637387660,0.00779764,2942.7,2942.6,4.6778415]
[1644637387859,0.00465199,2943.3,2942.6,5.6778415]
[1644637388059,0.00779757,2942.8,2942.7,1.4460039]
[1644637388258,0.00779757,2942.8,2942.7,4.83409203]
[1644637388901,0.8608065,2943.5,2942.7,3.38808813]
[1644637389101,0.8608065,2943.5,2942.6,1.0]
[1644637389299,0.00779751,2942.9,2942.6,1.0]
[1644637389499,0.00779751,2942.9,2942.7,3.20433908]
[1644637389700,0.00779751,2942.9,2942.8,1.93686874]
[1644637389899,0.00779751,2942.9,2942.8,2.23686874]
[1644637390099,0.00365199,2943.6,2942.8,0.791]
[1644637390298,0.8608065,2943.8,2942.8,0.791]
[1644637390502,0.00779744,2943.0,2942.9,3.14573267]
[1644637390798,0.00779744,2943.0,2942.9,1.0]
[1644637391202,0.00779744,2943.0,2942.8,0.791]
[1644637391399,0.1698,2943.5,2942.9,3.34694325]
[1644637391600,0.00779737,2943.1,2942.8,0.491]
[1644637392549,0.00365199,2943.4,2942.8,0.491]
[1644637392750,0.00365199,2943.4,2942.8,4.62309064]
[1644637392751,0.00779737,2943.1,2942.8,4.62309064]
[1644637392949,0.00779737,2943.1,2942.8,1.34066]
[1644637393149,0.00779737,2943.1,2942.9,2.44578109]
[1644637393349,0.00779737,2943.1,2943.0,0.9608]
[1644637393750,0.00365199,2943.5,2943.1,0.84953]
[1644637393949,0.00365199,2943.5,2943.2,0.86234128]
[1644637394150,0.03118454,2943.6,2943.2,0.86234128]
[1644637394351,0.00365199,2943.5,2943.2,0.86234128]
[1644637394550,0.03118454,2943.6,2943.2,0.86234128]
[1644637395051,0.00365199,2944.0,2943.4,0.84946]
[1644637395250,0.00779707,2943.5,2943.4,0.84946]
[1644637395449,0.06055082,2943.5,2943.2,2.46234128]
[1644637395651,0.06055082,2943.5,2943.2,1.46234128]
[1644637395909,0.06055082,2943.5,2943.2,2.46234128]
[1644637396098,0.06055082,2943.5,2943.2,1.46234128]
[1644637396298,0.06055082,2943.5,2943.2,2.46234128]
[1644637396299,0.05275375,2943.5,2943.2,2.46234128]
[1644637396500,0.06055085,2943.5,2943.2,2.31184128]
[1644637397100,0.05919188,2943.5,2943.2,2.31184128]
[1644637397506,0.05139478,2943.5,2943.2,2.31184128]
[1644637397707,0.05856833,2943.5,2943.2,2.31184128]
[1644637398609,0.05139478,2943.5,2943.2,2.31184128]
[1644637398809,0.00365199,2944.3,2943.5,0.84936]
[1644637398810,0.0286899,2943.9,2943.5,0.84936]
[1644637399108,0.0286899,2943.9,2943.8,1.24633474]
[1644637399308,0.0286899,2943.9,2943.8,4.96779052]
[1644637399511,0.0286899,2943.9,2943.8,5.96779052]
[1644637399750,0.00465199,2944.8,2943.8,5.96779052]
[1644637399951,0.00465199,2944.8,2944.1,0.84923]
[1644637400149,0.02868857,2944.4,2944.1,0.84923]
[1644637400349,0.02868857,2944.4,2944.3,0.86094818]
[1644637401050,0.00365199,2944.8,2944.0,3.24136589]
[1644637401253,0.00717288,2944.5,2944.0,3.24136589]
[1644637402253,0.00365199,2944.8,2943.9,1.64508971]
[1644637402454,0.00722006,2944.4,2943.9,2.64508971]
[1644637403254,0.00722006,2944.4,2943.9,3.66319189]
[1644637403502,0.00365199,2944.8,2944.0,3.26295255]
[1644637403700,0.00722013,2944.3,2944.0,3.26295255]
[1644637404002,0.00722013,2944.3,2943.9,3.66319189]
[1644637404200,0.00722013,2944.3,2943.9,6.94415963]
[1644637404604,0.00365199,2944.8,2943.9,6.94415963]
[1644637404802,0.00722016,2944.2,2943.9,6.94415963]
[1644637405501,0.00722016,2944.2,2944.1,0.02493203]
[1644637405902,0.00365199,2944.8,2944.3,0.84907]
[1644637406101,0.00365199,2944.8,2944.4,3.58595105]
[1644637406102,0.028842,2944.7,2944.4,3.58595105]
[1644637406502,0.028842,2944.7,2944.5,1.95371683]
[1644637406702,0.028842,2944.7,2944.6,3.265]
[1644637406902,0.00365199,2944.8,2944.5,3.65176683]
[1644637407152,0.00365199,2944.8,2944.6,3.319605]
[1644637407355,0.00721125,2944.8,2944.5,3.65176683]
[1644637408253,0.00465199,2944.9,2944.5,3.65176683]
[1644637408455,0.00721125,2944.8,2944.5,3.65176683]
[1644637408954,0.00721125,2944.8,2944.5,2.69805]
[1644637409155,0.00721125,2944.8,2944.5,1.0]
[1644637409357,0.00465199,2944.9,2944.4,0.3]
[1644637409556,0.00465199,2944.9,2944.5,0.1698]
[1644637409557,0.00721179,2944.8,2944.5,0.1698]
[1644637409761,0.00721179,2944.8,2944.6,0.02440854]
[1644637410262,0.00721179,2944.8,2944.6,1.02440854]
[1644637410659,0.00465199,2944.9,2944.6,0.02440854]
[1644637410896,0.00721176,2944.8,2944.6,0.02440854]
[1644637411897,0.00465199,2944.9,2944.6,0.02440854]
[1644637412097,0.00721176,2944.8,2944.6,0.02440854]
[1644637413103,0.00465199,2944.9,2944.6,0.02440854]
[1644637413302,0.00721172,2944.8,2944.6,0.02440854]
[1644637414302,0.001,2944.9,2944.6,1.02440854]
[1644637414502,0.00721172,2944.8,2944.6,1.02440854]
[1644637414951,0.00721172,2944.8,2944.6,0.02440854]
[1644637415149,0.00721172,2944.8,2944.4,1.49465647]
[1644637416248,0.00721172,2944.8,2944.4,1.32505647]
[1644637416649,0.00465199,2944.9,2944.4,1.32505647]
[1644637416849,0.00721179,2944.7,2944.4,1.32505647]
[1644637417049,0.00721179,2944.7,2944.5,3.2203721]
[1644637417254,0.00721179,2944.7,2944.4,1.32505647]
[1644637417456,0.00721179,2944.7,2944.6,1.0]
[1644637417653,0.00721179,2944.7,2944.4,1.32505647]
[1644637417853,0.00465199,2944.9,2944.4,1.32505647]
[1644637418053,0.00721176,2944.8,2944.5,3.22079145]
[1644637418254,0.00721176,2944.8,2944.4,1.32505647]
[1644637418500,0.00721176,2944.8,2944.6,1.0]
[1644637418700,0.00721176,2944.8,2944.4,1.32505647]
[1644637418901,0.00465199,2944.9,2944.4,1.32505647]
[1644637419300,0.00721179,2944.7,2944.4,1.32505647]
[1644637420104,0.00465199,2944.9,2944.4,1.3]
[1644637420505,0.00721183,2944.7,2944.4,1.3]
[1644637421303,0.00465199,2944.9,2944.4,1.3]
[1644637421702,0.00721183,2944.7,2944.4,1.3]
[1644637422570,0.001,2944.9,2944.4,1.3]
[1644637422773,0.00721183,2944.7,2944.4,1.3]
[1644637423669,0.00721183,2944.7,2944.4,1.29880033]
[1644637423869,0.00466892,2944.9,2944.5,3.21268656]
[1644637424069,0.00721183,2944.7,2944.4,1.29880033]
[1644637424270,0.00721183,2944.7,2944.4,0.29880033]
[1644637424469,0.00721183,2944.7,2944.4,1.29880033]
[1644637425074,0.00466892,2944.9,2944.4,1.29880033]
[1644637425280,0.00721183,2944.7,2944.4,0.29880033]
[1644637425474,0.00721183,2944.7,2944.6,0.02440854]
[1644637426300,0.00466892,2944.9,2944.6,0.02440854]
[1644637426503,0.00721177,2944.8,2944.6,0.02440854]
[1644637427306,0.00721177,2944.8,2944.6,3.24592454]
[1644637427506,0.00466892,2944.9,2944.6,3.24592454]
[1644637427708,0.00721173,2944.8,2944.6,3.24592454]
[1644637428708,0.00466892,2944.9,2944.6,3.24592454]
[1644637428908,0.00721173,2944.8,2944.6,3.24592454]
[1644637429307,0.00721173,2944.8,2944.7,1.0]
[1644637429753,0.001,2944.9,2944.7,1.6]
[1644637430152,0.0082117,2944.9,2944.7,1.62461386]
[1644637430952,0.001,2944.9,2944.7,0.62461386]
[1644637431156,0.001,2944.9,2944.7,0.32461386]
[1644637431355,0.00821166,2944.9,2944.7,0.02461386]
[1644637432154,0.00821166,2944.9,2944.7,0.32461386]
[1644637432358,0.001,2944.9,2944.7,0.02461386]
[1644637432558,0.00821166,2944.9,2944.7,0.02461386]
[1644637433432,0.001,2944.9,2944.7,0.02461386]
[1644637433620,0.00821166,2944.9,2944.7,3.32833386]
[1644637433820,0.00821166,2944.9,2944.8,1.0]
[1644637434021,0.00821166,2944.9,2944.7,0.02461386]
[1644637434623,0.001,2944.9,2944.7,0.02461386]
[1644637434823,0.00821165,2944.9,2944.7,0.02461386]
[1644637435221,0.1696,2944.8,2944.7,0.02461386]
[1644637435422,1.02575451,2944.8,2943.9,0.25]
[1644637435625,0.86345058,2944.5,2943.8,0.02522847]
[1644637435833,0.00366892,2944.4,2943.8,0.02522847]
[1644637436025,0.00989524,2944.5,2943.6,7.20302847]
[1644637436224,0.01710719,2944.5,2943.6,7.20302847]
[1644637436426,0.01710719,2944.5,2943.7,3.24160329]
[1644637436626,0.01710719,2944.5,2943.8,0.1698]
[1644637436825,0.01710719,2944.5,2943.6,7.20302847]
[1644637437028,0.17969524,2944.5,2943.6,7.20302847]
[1644637437253,0.00721209,2944.3,2943.6,7.20302847]
[1644637437653,0.00821209,2944.3,2943.6,3.54972847]
[1644637437854,0.00721209,2944.3,2943.7,1.0]
[1644637438355,0.01089524,2944.5,2943.7,1.0]
[1644637438552,0.00721221,2944.1,2943.7,1.0]
[1644637439553,0.00366892,2944.4,2943.7,1.0]
[1644637439755,0.00721228,2944.0,2943.7,1.0]
[1644637440155,0.00721228,2944.0,2943.9,0.02301265]
[1644637440755,0.85722426,2944.4,2943.9,0.02301265]
[1644637441006,0.00721224,2944.1,2943.9,0.02301265]
[1644637441408,2.03859058,2944.1,2943.9,0.02301265]
[1644637441606,0.001,2944.0,2943.9,0.02301265]
[1644637443208,0.85455534,2944.0,2943.9,0.02301265]
[1644637444410,4.60911985,2944.0,2943.9,1.265e-05]
[1644637444652,5.88637045,2944.0,2943.9,1.265e-05]
[1644637444851,6.88637045,2944.0,2943.9,1.265e-05]
[1644637445152,5.60911985,2944.0,2943.9,1.265e-05]
[1644637445352,1.9618,2944.0,2943.9,0.02362668]
[1644637445552,5.57772776,2944.0,2943.9,2.668e-05]
[1644637445753,6.85497836,2944.0,2943.9,2.668e-05]
[1644637445954,5.57772776,2944.0,2943.9,2.668e-05]
[1644637446155,1.9618,2944.0,2943.9,2.668e-05]
[1644637446555,1.93464995,2944.0,2943.9,2.668e-05]
[1644637446756,3.21190055,2944.0,2943.9,2.668e-05]
[1644637446956,1.93464995,2944.0,2943.9,2.668e-05]
[1644637447559,3.21190055,2944.0,2943.9,2.668e-05]
[1644637447759,1.93464995,2944.0,2943.9,2.668e-05]
[1644637448602,3.21190055,2944.0,2943.9,2.668e-05]
[1644637449005,1.93464995,2944.0,2943.9,2.668e-05]
[1644637449810,0.84984,2943.5,2942.7,0.1698]
[1644637450308,1.45084,2943.5,2942.7,0.1698]
[1644637450508,0.00721284,2943.2,2942.7,0.1698]
[1644637450708,0.00721284,2943.2,2942.5,0.4198]
[1644637450907,0.00721284,2943.2,2942.6,1.44580797]
[1644637451509,0.001,2943.4,2942.6,1.44580797]
[1644637451711,0.00721297,2943.0,2942.6,1.44580797]
[1644637451913,0.00721297,2943.0,2942.7,0.1698]
[1644637452152,0.00721297,2943.0,2942.3,1.19125833]
[1644637452153,0.00721297,2943.0,2942.5,0.1698]
[1644637452359,0.00721297,2943.0,2942.3,0.00655833]
[1644637452757,1.70001,2943.2,2942.2,0.1698]
[1644637452957,0.00721318,2942.8,2942.3,1.45253076]
[1644637453156,0.00721318,2942.8,2942.3,0.00655833]
[1644637453157,0.00821318,2942.8,2942.3,0.00655833]
[1644637453959,0.00821318,2942.8,2942.0,0.1698]
[1644637453960,0.8509701,2942.8,2942.0,0.1698]
[1644637454158,0.00721325,2942.7,2942.3,0.00655833]
[1644637455159,0.00721325,2942.7,2942.0,0.1698]
[1644637455160,0.8501672,2942.6,2942.0,0.1698]
[1644637455359,0.8501672,2942.6,2942.3,0.00655833]
[1644637455360,1.02718048,2942.6,2942.3,0.00655833]
[1644637455559,0.85022,2942.4,2942.3,0.00655833]
[1644637455760,1.34222,2942.4,2942.3,0.00655833]
[1644637456406,1.34222,2942.4,2941.8,0.25]
[1644637456407,2.21954197,2942.4,2941.8,0.25]
[1644637456610,0.8511552,2942.3,2942.2,0.00655844]
[1644637457411,0.8511552,2942.3,2941.4,0.1698]
[1644637457611,0.8511552,2942.3,2941.5,1.44613949]
[1644637457813,0.8511552,2942.3,2942.1,0.00655867]
[1644637458010,0.8501552,2942.3,2942.1,0.00655867]
[1644637458212,0.001,2942.4,2942.1,0.00655867]
[1644637458412,0.00721311,2942.5,2942.1,0.00655867]
[1644637458611,0.00721311,2942.5,2941.4,3.45105]
[1644637458812,0.1708,2942.7,2941.6,0.99176164]
[1644637459011,0.0072132,2942.5,2942.2,0.00655855]
[1644637459855,0.01512955,2942.3,2941.7,3.20405198]
[1644637460055,0.01512955,2942.3,2942.2,0.00655844]
[1644637461156,0.01512955,2942.3,2941.7,3.26185511]
[1644637461356,0.01512955,2942.3,2942.1,0.00655867]
[1644637462363,0.01512955,2942.3,2941.7,3.2069123]
[1644637462564,0.01512955,2942.3,2942.1,0.00655878]
[1644637463604,0.01512955,2942.3,2941.6,4.21801555]
[1644637463809,0.01512955,2942.3,2942.1,0.00655878]
[1644637464611,0.01378175,2942.3,2942.1,0.00655878]
[1644637464813,0.01378175,2942.3,2941.6,4.31654054]
[1644637465012,0.01378175,2942.3,2942.1,0.00655878]
[1644637465211,0.01436766,2942.3,2942.1,0.00655878]
[1644637465812,0.01436766,2942.3,2941.8,3.224226]
[1644637466012,0.01436766,2942.3,2941.9,1.44604523]
[1644637466213,0.01436766,2942.3,2942.1,0.00655878]
[1644637467153,0.01436766,2942.3,2941.8,3.224226]
[1644637467358,0.01436766,2942.3,2942.1,0.00655878]
[1644637468357,0.01436766,2942.3,2941.8,3.44958386]
[1644637468559,0.01436766,2942.3,2942.1,0.00655878]
[1644637470260,0.1698,2942.4,2942.1,0.00655878]
[1644637470261,0.01335682,2942.2,2942.1,0.00655878]
[1644637470663,0.01335682,2942.2,2941.3,0.00258571]
[1644637470911,0.01335682,2942.2,2942.0,0.00655889]
[1644637470912,0.1698,2942.1,2942.0,0.00655889]
[1644637471103,0.1708,2942.1,2942.0,0.00655889]
[1644637472004,0.1708,2942.1,2941.3,0.00258571]
[1644637472209,0.1708,2942.1,2941.9,0.00655911]
[1644637473210,0.1708,2942.1,2941.3,0.00258571]
[1644637473410,0.1708,2942.1,2941.9,0.00655922]
[1644637474311,0.1708,2942.1,2941.3,0.00258571]
[1644637474511,0.8502172,2942.0,2941.9,0.00655922]
[1644637475554,0.8502172,2942.0,2941.3,0.00258571]
[1644637475754,0.8502172,2942.0,2941.8,0.00655933]
[1644637476755,0.8502172,2942.0,2941.3,0.00258571]
[1644637476955,0.01434002,2942.1,2941.8,0.00655945]
[1644637477155,0.01334002,2942.1,2941.8,0.00655945]
[1644637477363,0.01334002,2942.1,2941.9,1.44617225]
[1644637478059,0.01334002,2942.1,2941.3,0.00258571]
[1644637478259,0.01334002,2942.1,2941.9,0.00655922]
[1644637479105,0.01334002,2942.1,2941.3,0.00258571]
[1644637479304,0.01334002,2942.1,2941.9,0.00655922]
[1644637480007,0.001,2942.2,2942.0,1.44613807]
[1644637480205,0.001,2942.2,2941.9,0.00655922]
[1644637480406,0.001,2942.2,2941.3,0.00258571]
[1644637480606,0.001,2942.2,2942.0,0.006559]
[1644637481606,0.001,2942.2,2941.3,0.00258571]
[1644637481807,0.001,2942.2,2942.0,0.006559]
[1644637482010,0.850139,2942.3,2942.0,0.006559]
[1644637482662,0.850139,2942.3,2941.3,0.17238571]
[1644637482863,1.020939,2942.3,2941.4,1.44614633]
[1644637483060,0.001,2942.2,2942.0,0.00655889]
[1644637483261,0.001,2942.2,2942.1,1.44614633]
[1644637485664,0.01527376,2942.2,2942.1,1.44614633]
[1644637486803,0.01427376,2942.2,2942.1,1.44614633]
[1644637487815,0.01427376,2942.2,2942.0,0.00655889]
[1644637488110,0.01427376,2942.2,2942.1,1.44614633]
[1644637489953,0.02763058,2942.2,2942.1,1.44614633]
[1644637490360,0.02671498,2942.2,2942.1,1.44614633]
[1644637492461,0.02671498,2942.2,2941.8,1.44873204]
[1644637492662,0.85828129,2942.5,2942.2,0.03199479]
[1644637492965,0.85828129,2942.5,2942.3,1.44614633]
[1644637493604,0.8510683,2942.5,2942.3,1.44614633]
[1644637493804,0.85828174,2942.5,2942.3,1.45270466]
[1644637494005,1.70842174,2942.5,2942.3,0.00655833]
[1644637494206,0.001,2942.4,2942.3,0.00655833]
[1644637494405,0.001,2942.4,2942.3,1.45271522]
[1644637494807,0.001,2942.4,2942.3,1.44615689]
[1644637495610,0.301,2942.4,2942.3,1.44615689]
[1644637498564,0.001,2942.4,2942.3,1.44615689]
[1644637498766,0.301,2942.4,2942.3,1.44615689]
[1644637498965,0.001,2942.4,2942.3,1.44615689]
[1644637499566,0.301,2942.4,2942.3,1.44615689]
[1644637499965,0.31878305,2942.4,2942.3,1.4692667]
[1644637500166,0.01878305,2942.4,2942.3,1.4692667]
[1644637500367,0.31878305,2942.4,2942.3,1.4692667]
[1644637500775,0.01878305,2942.4,2942.3,1.4692667]
[1644637504411,0.01778305,2942.4,2942.3,1.4692667]
[1644637506657,0.01778305,2942.4,2942.3,1.468218]
[1644637509109,0.08646202,2942.4,2942.3,1.468218]
[1644637509308,0.15614099,2942.4,2942.3,1.468218]
[1644637510312,0.17109336,2942.4,2942.3,1.44615689]
[1644637512371,3.77473177,2942.4,2942.3,1.44615689]
[1644637512570,4.56573177,2942.4,2942.2,0.03855323]
[1644637512770,0.001,2942.3,2942.2,0.03199479]
[1644637512970,0.1708,2942.3,2942.2,0.03855323]
[1644637513170,1.87144,2942.3,2942.2,0.03855323]
[1644637513771,4.4225371,2942.3,2942.2,0.03855323]
[1644637513974,4.4225371,2942.3,2942.2,0.03199479]
[1644637514171,4.2527371,2942.3,2942.2,1.47825028]
[1644637514371,4.32141607,2942.3,2942.2,0.03199479]
[1644637514570,4.39009504,2942.3,2942.2,0.03199479]
[1644637514770,4.39009504,2942.3,2942.2,1.47826015]
[1644637514973,4.39009504,2942.3,2942.2,0.03199479]
[1644637516006,2.68945504,2942.3,2942.2,0.03199479]
[1644637517215,0.13835794,2942.3,2942.2,1.47822884]
[1644637517611,0.13735794,2942.3,2942.2,1.47822884]
[1644637520358,0.1512775,2942.3,2942.2,1.47822884]
[1644637524311,0.1512775,2942.3,2942.2,0.03199479]
[1644637524908,0.1512775,2942.3,2942.2,1.47823089]
[1644637530268,0.16621093,2942.3,2942.2,1.47823089]
[1644637530468,0.16621093,2942.3,2942.2,1.47822902]
[1644637530667,0.13735794,2942.3,2942.2,1.47822902]
[1644637531517,0.13735794,2942.3,2942.2,0.03199479]
[1644637531715,0.13735794,2942.3,2942.2,1.47823605]
[1644637531915,0.13735794,2942.3,2942.2,0.03199479]
[1644637532119,0.13735794,2942.3,2942.2,1.47823605]
[1644637532721,0.13735794,2942.3,2942.2,1.47823003]
[1644637535461,0.15301745,2942.3,2942.2,1.47823003]
[1644637537466,0.15401745,2942.3,2942.2,1.47823003]
[1644637537665,0.15301745,2942.3,2942.2,1.47823003]
[1644637542157,0.15401745,2942.3,2942.2,1.47823003]
[1644637542766,0.15301745,2942.3,2942.2,1.47823003]
[1644637543764,0.15186831,2942.3,2942.2,1.47823003]
[1644637543963,0.08433848,2942.3,2942.2,1.47823003]
[1644637544164,0.15186831,2942.3,2942.2,1.47823003]
[1644637545765,1.00197491,2942.3,2942.2,1.47823003]
[1644637546010,1.00297491,2942.3,2942.2,1.47823003]
[1644637546911,0.15286831,2942.3,2942.2,1.47823003]
[1644637547111,0.15186831,2942.3,2942.2,1.47823003]
[1644637550262,0.16670328,2942.3,2942.2,1.47823003]
[1644637553513,0.16770328,2942.3,2942.2,1.47823003]
[1644637554314,0.16670328,2942.3,2942.2,1.47823003]
[1644637557968,0.08318934,2942.3,2942.2,1.47823003]
[1644637558368,0.11670328,2942.3,2942.2,1.47823003]
[1644637560910,0.96684768,2942.3,2942.2,1.47823003]
[1644637561112,0.96684768,2942.3,2942.2,0.03199479]
[1644637561414,0.96784768,2942.3,2942.2,0.03199479]
[1644637561713,0.96684768,2942.3,2942.2,0.03199479]
[1644637561910,0.96684768,2942.3,2942.2,1.47824258]
[1644637564318,1.45784768,2942.3,2942.2,0.03199479]
[1644637564519,2.31104629,2942.3,2942.2,0.03199479]
[1644637564765,1.45884768,2942.3,2942.2,0.03199479]
[1644637564965,1.62864768,2942.3,2942.2,0.03199479]
[1644637565368,0.85027,2942.2,2942.1,0.00657288]
[1644637565564,0.85027,2942.2,2941.6,0.00258571]
[1644637565565,0.85127,2942.2,2941.6,0.00258571]
[1644637565765,1.7004657,2942.1,2941.6,0.00258571]
[1644637565964,0.03351394,2941.8,2941.6,0.00258571]
[1644637566965,0.03351394,2941.8,2941.6,0.00915982]
[1644637567166,0.03351394,2941.8,2941.7,1.44634057]
[1644637568270,0.03351394,2941.8,2941.6,1.45550028]
[1644637568512,0.03351394,2941.8,2941.7,1.44634057]
[1644637569415,0.03351394,2941.8,2941.6,1.45550028]
[1644637569613,0.03351394,2941.8,2941.7,1.44634057]
[1644637570013,0.06752983,2941.9,2941.8,0.04053153]
[1644637570214,0.06752983,2941.9,2941.8,1.4868721]
[1644637575365,0.08218689,2941.9,2941.8,1.4868721]
[1644637589871,0.8501125,2942.3,2941.9,0.09964529]
[1644637590072,0.8501125,2942.3,2942.0,1.44634057]
[1644637590471,0.001,2942.4,2942.0,1.44634057]
[1644637591217,0.001,2942.4,2942.1,0.00657299]
[1644637591416,0.001,2942.4,2942.2,1.44634057]
[1644637591615,0.85827884,2942.5,2942.2,1.44634057]
[1644637592013,0.8510614,2942.5,2942.2,1.44634057]